[Event "*** Titled Tuesday Blitz"]
[Site "Chess.com"]
[Date "2020.04.07"]
[Round "3"]
[White "DeGrootteZ"]
[Black "JakeCarlosBanawa"]
[Result "1-0"]
[WhiteElo "2694"]
[BlackElo "2418"]
[TimeControl "180+1"]
[EndTime "13:27:51 PDT"]
[Termination "DeGrootteZ won by resignation"]

1. e4 {[%clk 0:03:00.9]} 1... c5 {[%clk 0:02:59.5]} 2. Nf3 {[%clk 0:03:01.3]}
2... d6 {[%clk 0:02:58.6]} 3. d4 {[%clk 0:03:01.8]} 3... cxd4 {[%clk 0:02:59.4]}
4. Nxd4 {[%clk 0:03:02.5]} 4... Nf6 {[%clk 0:02:59.9]} 5. Nc3 {[%clk 0:03:03.1]}
5... a6 {[%clk 0:03:00.5]} 6. Bg5 {[%clk 0:03:02.3]} 6... e6 {[%clk 0:03:00.3]}
7. f4 {[%clk 0:03:02.6]} 7... h6 {[%clk 0:03:00.2]} 8. Bh4 {[%clk 0:03:02.5]}
8... Qb6 {[%clk 0:03:00.8]} 9. Qd3 {[%clk 0:03:02.9]} 9... Qxb2 {[%clk
0:02:53.3]} 10. Rb1 {[%clk 0:03:03]} 10... Qa3 {[%clk 0:02:53.8]} 11. e5 {[%clk
0:03:03.5]} 11... dxe5 {[%clk 0:02:31.8]} 12. fxe5 {[%clk 0:03:04.4]} 12... Nd5
{[%clk 0:02:08.3]} 13. Nxd5 {[%clk 0:03:03.7]} 13... Qxd3 {[%clk 0:02:05.9]} 14.
Bxd3 {[%clk 0:02:44.9]} 14... exd5 {[%clk 0:02:04.7]} 15. e6 {[%clk 0:02:40.2]}
15... Bxe6 {[%clk 0:01:10.3]} 16. Nxe6 {[%clk 0:02:39.3]} 16... fxe6 {[%clk
0:01:11.2]} 17. Rxb7 {[%clk 0:02:33.3]} 17... g5 {[%clk 0:01:06.7]} 18. Bg3
{[%clk 0:02:32.2]} 18... Nd7 {[%clk 0:01:04.9]} 19. Bg6+ {[%clk 0:02:32.3]}
19... Kd8 {[%clk 0:01:04.2]} 20. Rf1 {[%clk 0:02:32.2]} 20... Nc5 {[%clk
0:00:20.5]} 21. Rbf7 {[%clk 0:02:23.8]} 21... Be7 {[%clk 0:00:20.7]} 22. Rxe7
{[%clk 0:01:59.7]} 22... Kxe7 {[%clk 0:00:21.6]} 23. Rf7+ {[%clk 0:01:59.8]}
23... Kd8 {[%clk 0:00:21.8]} 24. Bc7+ {[%clk 0:02:00.1]} 24... Kc8 {[%clk
0:00:21.4]} 25. Be5 {[%clk 0:02:00.5]} 25... Rg8 {[%clk 0:00:19.3]} 26. Bh7
{[%clk 0:01:56.7]} 26... Nd7 {[%clk 0:00:19.3]} 27. Bxg8 {[%clk 0:01:48.7]}
27... Nxe5 {[%clk 0:00:19.5]} 28. Rh7 {[%clk 0:01:49.2]} 28... Nd7 {[%clk
0:00:17.1]} 29. Bxe6 {[%clk 0:01:48]} 29... Ra7 {[%clk 0:00:17.1]} 30. Rh8+
{[%clk 0:01:42.3]} 30... Kc7 {[%clk 0:00:16.9]} 31. Bxd7 {[%clk 0:01:42.8]} 1-0

[Event "*** Titled Tuesday Blitz"]
[Site "Chess.com"]
[Date "2020.04.07"]
[Round "3"]
[White "Andro2"]
[Black "pirulillo"]
[Result "1-0"]
[WhiteElo "2421"]
[BlackElo "2163"]
[TimeControl "180+1"]
[EndTime "13:27:53 PDT"]
[Termination "Andro2 won by resignation"]

1. e4 {[%clk 0:02:43.8]} 1... c5 {[%clk 0:02:52]} 2. Nf3 {[%clk 0:02:43]} 2...
e6 {[%clk 0:02:45.1]} 3. d4 {[%clk 0:02:42.8]} 3... cxd4 {[%clk 0:02:46]} 4.
Nxd4 {[%clk 0:02:43.3]} 4... Nf6 {[%clk 0:02:43.9]} 5. Nc3 {[%clk 0:02:42]} 5...
Nc6 {[%clk 0:02:34.8]} 6. Ndb5 {[%clk 0:02:40.4]} 6... d6 {[%clk 0:02:33.9]} 7.
Bf4 {[%clk 0:02:38.2]} 7... e5 {[%clk 0:02:34.8]} 8. Bg5 {[%clk 0:02:38.6]} 8...
a6 {[%clk 0:02:33.5]} 9. Na3 {[%clk 0:02:38.3]} 9... b5 {[%clk 0:02:31.2]} 10.
Bxf6 {[%clk 0:02:36]} 10... gxf6 {[%clk 0:02:31.2]} 11. Nd5 {[%clk 0:02:36.2]}
11... Bg7 {[%clk 0:02:30.7]} 12. Bd3 {[%clk 0:02:35.6]} 12... Ne7 {[%clk
0:02:30.4]} 13. Nxe7 {[%clk 0:02:35]} 13... Qxe7 {[%clk 0:02:30.8]} 14. c4
{[%clk 0:02:35.6]} 14... f5 {[%clk 0:02:29.9]} 15. O-O {[%clk 0:02:33.4]} 15...
O-O {[%clk 0:02:29.6]} 16. Qh5 {[%clk 0:02:32.9]} 16... d5 {[%clk 0:02:20.9]}
17. cxd5 {[%clk 0:02:19.1]} 17... fxe4 {[%clk 0:02:09.5]} 18. Bxe4 {[%clk
0:02:17]} 18... f5 {[%clk 0:02:09.4]} 19. d6 {[%clk 0:02:17.1]} 19... Qa7 {[%clk
0:02:04.7]} 20. Bd5+ {[%clk 0:02:09.9]} 20... Kh8 {[%clk 0:02:04.3]} 21. Bxa8
{[%clk 0:02:09.7]} 21... Qxa8 {[%clk 0:02:03.9]} 22. Rad1 {[%clk 0:02:10.1]}
22... Bd7 {[%clk 0:02:02.9]} 23. Nc2 {[%clk 0:02:02.1]} 23... f4 {[%clk
0:01:59.7]} 24. f3 {[%clk 0:01:50.1]} 24... Rf5 {[%clk 0:01:47.6]} 25. Qh4
{[%clk 0:01:43.7]} 25... Bf6 {[%clk 0:01:45.7]} 26. Qf2 {[%clk 0:01:42.6]} 26...
Rg5 {[%clk 0:01:43.3]} 27. Kh1 {[%clk 0:01:36.9]} 27... Bd8 {[%clk 0:01:42.7]}
28. Nb4 {[%clk 0:01:34.9]} 28... a5 {[%clk 0:01:39]} 29. Nd5 {[%clk 0:01:33.6]}
29... Bc6 {[%clk 0:01:37.5]} 30. Ne7 {[%clk 0:01:27.4]} 30... Bb7 {[%clk
0:01:35.3]} 31. Rfe1 {[%clk 0:01:18.5]} 31... Qa6 {[%clk 0:01:31.7]} 32. Qc5
{[%clk 0:01:11.4]} 32... Bb6 {[%clk 0:01:30.8]} 33. d7 {[%clk 0:01:00.9]} 33...
Qa8 {[%clk 0:01:27.3]} 34. Qxb6 {[%clk 0:00:57.4]} 34... Bxf3 {[%clk 0:01:22.7]}
35. d8=Q+ {[%clk 0:00:56.2]} 1-0

[Event "*** Titled Tuesday Blitz"]
[Site "Chess.com"]
[Date "2020.04.07"]
[Round "3"]
[White "arctic_t00"]
[Black "SamuelGhimpu2003"]
[Result "0-1"]
[WhiteElo "2380"]
[BlackElo "2686"]
[TimeControl "180+1"]
[EndTime "13:27:54 PDT"]
[Termination "SamuelGhimpu2003 won by resignation"]

1. Nf3 {[%clk 0:03:00.9]} 1... Nf6 {[%clk 0:02:59.7]} 2. c4 {[%clk 0:03:00.5]}
2... g6 {[%clk 0:02:59.3]} 3. Nc3 {[%clk 0:03:00.3]} 3... Bg7 {[%clk 0:02:59.1]}
4. e4 {[%clk 0:02:59.9]} 4... c5 {[%clk 0:02:59]} 5. d4 {[%clk 0:02:59.7]} 5...
cxd4 {[%clk 0:02:59]} 6. Nxd4 {[%clk 0:03:00]} 6... d6 {[%clk 0:02:59.9]} 7. Be2
{[%clk 0:02:59.5]} 7... Nc6 {[%clk 0:03:00]} 8. Be3 {[%clk 0:02:59.2]} 8... O-O
{[%clk 0:02:59.4]} 9. O-O {[%clk 0:02:58.9]} 9... Bd7 {[%clk 0:02:59.3]} 10. Qd2
{[%clk 0:02:58.8]} 10... Nxd4 {[%clk 0:02:58.4]} 11. Bxd4 {[%clk 0:02:58.9]}
11... Bc6 {[%clk 0:02:59.3]} 12. f3 {[%clk 0:02:58.9]} 12... a5 {[%clk
0:02:58.5]} 13. b3 {[%clk 0:02:58.4]} 13... Nd7 {[%clk 0:02:57.4]} 14. Be3
{[%clk 0:02:58.5]} 14... Nc5 {[%clk 0:02:55.1]} 15. Rac1 {[%clk 0:02:57]} 15...
Qb6 {[%clk 0:02:28.8]} 16. Rfd1 {[%clk 0:02:56.2]} 16... Rfe8 {[%clk 0:02:12]}
17. Nd5 {[%clk 0:02:55.6]} 17... Bxd5 {[%clk 0:02:11.3]} 18. cxd5 {[%clk
0:02:55.6]} 18... Rec8 {[%clk 0:02:10.2]} 19. Rc2 {[%clk 0:02:52.3]} 19... Bh6
{[%clk 0:01:42.7]} 20. Bxh6 {[%clk 0:01:52]} 20... Nxb3+ {[%clk 0:01:41.8]} 21.
Qe3 {[%clk 0:00:30.5]} 21... Qxe3+ {[%clk 0:01:40.4]} 22. Bxe3 {[%clk
0:00:31.4]} 22... Rxc2 {[%clk 0:01:41]} 23. Kf1 {[%clk 0:00:16.2]} 23... Rxa2
{[%clk 0:01:40]} 0-1

[Event "*** Titled Tuesday Blitz"]
[Site "Chess.com"]
[Date "2020.04.07"]
[Round "3"]
[White "anesar92"]
[Black "CalinGheorghiu"]
[Result "1-0"]
[WhiteElo "2731"]
[BlackElo "2449"]
[TimeControl "180+1"]
[EndTime "13:27:54 PDT"]
[Termination "anesar92 won by resignation"]

1. e4 {[%clk 0:03:00.9]} 1... c5 {[%clk 0:02:56.5]} 2. Nf3 {[%clk 0:03:00.1]}
2... d6 {[%clk 0:02:56.2]} 3. Nc3 {[%clk 0:03:00.1]} 3... Nf6 {[%clk 0:02:55.6]}
4. e5 {[%clk 0:03:00.4]} 4... dxe5 {[%clk 0:02:53.8]} 5. Nxe5 {[%clk 0:03:01.3]}
5... Nbd7 {[%clk 0:02:53.2]} 6. d4 {[%clk 0:03:01.4]} 6... Nxe5 {[%clk
0:02:50.3]} 7. dxe5 {[%clk 0:03:02.3]} 7... Qxd1+ {[%clk 0:02:50.3]} 8. Kxd1
{[%clk 0:03:03.2]} 8... Ng4 {[%clk 0:02:49.7]} 9. Bb5+ {[%clk 0:03:03.1]} 9...
Bd7 {[%clk 0:02:48.7]} 10. e6 {[%clk 0:03:03.5]} 10... fxe6 {[%clk 0:02:26.9]}
11. Ke2 {[%clk 0:02:54.7]} 11... O-O-O {[%clk 0:02:24.7]} 12. Bxd7+ {[%clk
0:02:41.4]} 12... Rxd7 {[%clk 0:02:23.6]} 13. Ne4 {[%clk 0:02:41.3]} 13... b6
{[%clk 0:02:16.9]} 14. f3 {[%clk 0:02:38.2]} 14... Ne5 {[%clk 0:02:08.6]} 15.
Ng5 {[%clk 0:02:37.9]} 15... g6 {[%clk 0:01:54.1]} 16. Nxe6 {[%clk 0:02:24.9]}
16... Nf7 {[%clk 0:01:54.2]} 17. Bf4 {[%clk 0:02:18.8]} 17... Nd8 {[%clk
0:01:51.9]} 18. Ng5 {[%clk 0:02:15.1]} 18... Bg7 {[%clk 0:01:50.2]} 19. c3
{[%clk 0:02:13.4]} 19... e5 {[%clk 0:01:48.9]} 20. Be3 {[%clk 0:02:11.6]} 20...
h6 {[%clk 0:01:49.1]} 21. Ne4 {[%clk 0:02:11.1]} 21... Ne6 {[%clk 0:01:49.7]}
22. Rad1 {[%clk 0:02:09.9]} 22... Rhd8 {[%clk 0:01:50.3]} 23. Rxd7 {[%clk
0:02:09.5]} 23... Rxd7 {[%clk 0:01:51.2]} 24. g3 {[%clk 0:02:09.3]} 24... g5
{[%clk 0:01:47.7]} 25. h4 {[%clk 0:02:08.4]} 25... gxh4 {[%clk 0:01:20.2]} 26.
Rxh4 {[%clk 0:02:09.3]} 26... Rd8 {[%clk 0:01:02.5]} 27. Bxh6 {[%clk 0:02:05.6]}
27... Bxh6 {[%clk 0:01:01.5]} 28. Rxh6 {[%clk 0:02:04.7]} 28... Nc7 {[%clk
0:00:59.7]} 29. Rh7 {[%clk 0:02:00.2]} 29... a5 {[%clk 0:00:57.7]} 30. a4 {[%clk
0:01:54.4]} 30... Nd5 {[%clk 0:00:57.3]} 31. Rh6 {[%clk 0:01:37.8]} 31... Kc7
{[%clk 0:00:56.4]} 32. Nf6 {[%clk 0:01:26.2]} 32... Ne7 {[%clk 0:00:51.7]} 33.
Rh7 {[%clk 0:01:22.7]} 33... Kd6 {[%clk 0:00:51.7]} 34. Ne4+ {[%clk 0:01:22.7]}
34... Ke6 {[%clk 0:00:49.6]} 35. Rh6+ {[%clk 0:01:22.4]} 1-0

[Event "*** Titled Tuesday Blitz"]
[Site "Chess.com"]
[Date "2020.04.07"]
[Round "3"]
[White "vova-79"]
[Black "SmirnovAlexandrA"]
[Result "1-0"]
[WhiteElo "2431"]
[BlackElo "2181"]
[TimeControl "180+1"]
[EndTime "13:27:56 PDT"]
[Termination "vova-79 won by resignation"]

1. d4 {[%clk 0:02:55.5]} 1... Nf6 {[%clk 0:02:59.1]} 2. c4 {[%clk 0:02:54.5]}
2... g6 {[%clk 0:02:59.1]} 3. Nc3 {[%clk 0:02:54.2]} 3... Bg7 {[%clk 0:02:59.5]}
4. Nf3 {[%clk 0:02:54.4]} 4... O-O {[%clk 0:02:59.8]} 5. g3 {[%clk 0:02:54.9]}
5... d6 {[%clk 0:03:00]} 6. Bg2 {[%clk 0:02:55.4]} 6... Nbd7 {[%clk 0:02:59.3]}
7. O-O {[%clk 0:02:55.9]} 7... e5 {[%clk 0:02:58.9]} 8. e4 {[%clk 0:02:56.5]}
8... c6 {[%clk 0:02:57.4]} 9. h3 {[%clk 0:02:57]} 9... Qc7 {[%clk 0:02:57.3]}
10. Be3 {[%clk 0:02:56.1]} 10... a6 {[%clk 0:02:56.9]} 11. Rc1 {[%clk
0:02:54.7]} 11... Re8 {[%clk 0:02:54.2]} 12. Re1 {[%clk 0:02:52.8]} 12... Nf8
{[%clk 0:02:53.1]} 13. Kh2 {[%clk 0:02:52.5]} 13... c5 {[%clk 0:02:49.6]} 14.
dxc5 {[%clk 0:02:49.5]} 14... dxc5 {[%clk 0:02:49.4]} 15. Nd5 {[%clk 0:02:49.8]}
15... Nxd5 {[%clk 0:02:45.8]} 16. cxd5 {[%clk 0:02:49.9]} 16... b6 {[%clk
0:02:44.8]} 17. b4 {[%clk 0:02:38.7]} 17... Nd7 {[%clk 0:02:43.7]} 18. bxc5
{[%clk 0:02:28.8]} 18... Nxc5 {[%clk 0:02:44.6]} 19. Nd2 {[%clk 0:02:17.8]}
19... Bf8 {[%clk 0:02:35.6]} 20. Nb3 {[%clk 0:02:16.5]} 20... Rd8 {[%clk
0:02:28.8]} 21. Nxc5 {[%clk 0:02:12.3]} 21... bxc5 {[%clk 0:02:28.7]} 22. Qc2
{[%clk 0:02:12.5]} 22... Rb8 {[%clk 0:02:25.6]} 23. Bxc5 {[%clk 0:02:12.5]}
23... Bxc5 {[%clk 0:02:24.5]} 24. Qxc5 {[%clk 0:02:13.4]} 24... Qxc5 {[%clk
0:02:24.1]} 25. Rxc5 {[%clk 0:02:14.3]} 25... Rb2 {[%clk 0:02:23.3]} 26. Rec1
{[%clk 0:02:13.1]} 26... Bd7 {[%clk 0:02:22.1]} 27. R1c2 {[%clk 0:02:12.5]}
27... Rdb8 {[%clk 0:02:20.6]} 28. Bf1 {[%clk 0:01:57]} 28... a5 {[%clk
0:02:11.4]} 29. Kg2 {[%clk 0:01:47.4]} 29... a4 {[%clk 0:02:10.6]} 30. Rc7
{[%clk 0:01:41.4]} 30... Rxc2 {[%clk 0:02:10]} 31. Rxc2 {[%clk 0:01:40.7]} 31...
Kf8 {[%clk 0:02:07.4]} 32. h4 {[%clk 0:01:33.1]} 32... Ke7 {[%clk 0:02:06.2]}
33. Kf3 {[%clk 0:01:31.4]} 33... Kd6 {[%clk 0:02:05.3]} 34. Ke3 {[%clk
0:01:30.7]} 34... h5 {[%clk 0:02:01.3]} 35. Kd2 {[%clk 0:01:30]} 35... Rb1
{[%clk 0:02:00]} 36. Bd3 {[%clk 0:01:26]} 36... f6 {[%clk 0:01:33.7]} 37. Rc6+
{[%clk 0:01:20.8]} 37... Bxc6 {[%clk 0:01:33]} 38. Bxb1 {[%clk 0:01:21.7]} 38...
Bd7 {[%clk 0:01:29.7]} 39. a3 {[%clk 0:01:18.8]} 39... Kc5 {[%clk 0:01:29.8]}
40. Kc3 {[%clk 0:01:19.1]} 40... Bb5 {[%clk 0:01:28.1]} 41. Bd3 {[%clk
0:01:16.6]} 41... Bd7 {[%clk 0:01:27.9]} 42. Ba6 {[%clk 0:01:13.6]} 42... Be8
{[%clk 0:01:26.2]} 43. Bc8 {[%clk 0:01:09.7]} 43... Bf7 {[%clk 0:01:26]} 44. Bd7
{[%clk 0:01:07.8]} 1-0

[Event "*** Titled Tuesday Blitz"]
[Site "Chess.com"]
[Date "2020.04.07"]
[Round "3"]
[White "ahkashefi2800"]
[Black "Schandenfreude"]
[Result "1-0"]
[WhiteElo "2212"]
[BlackElo "2509"]
[TimeControl "180+1"]
[EndTime "13:27:57 PDT"]
[Termination "ahkashefi2800 won by resignation"]

1. d4 {[%clk 0:03:00.5]} 1... Nf6 {[%clk 0:02:59.2]} 2. Nf3 {[%clk 0:03:00.1]}
2... e6 {[%clk 0:02:59]} 3. Bf4 {[%clk 0:02:59.3]} 3... b6 {[%clk 0:02:58.8]} 4.
e3 {[%clk 0:02:57.3]} 4... Bb7 {[%clk 0:02:58.6]} 5. Nbd2 {[%clk 0:02:56.6]}
5... Be7 {[%clk 0:02:58.7]} 6. Bd3 {[%clk 0:02:51.3]} 6... O-O {[%clk
0:02:58.3]} 7. O-O {[%clk 0:02:50.4]} 7... c5 {[%clk 0:02:58.3]} 8. c3 {[%clk
0:02:50.1]} 8... cxd4 {[%clk 0:02:58.1]} 9. exd4 {[%clk 0:02:51]} 9... d6 {[%clk
0:02:58.7]} 10. Re1 {[%clk 0:02:45.2]} 10... Nbd7 {[%clk 0:02:57.6]} 11. Qe2
{[%clk 0:02:44.3]} 11... Re8 {[%clk 0:02:54.2]} 12. Rad1 {[%clk 0:02:42.2]}
12... Qc7 {[%clk 0:02:52.9]} 13. Bb1 {[%clk 0:02:41.3]} 13... a6 {[%clk
0:02:52.3]} 14. Ng5 {[%clk 0:02:39.8]} 14... Bf8 {[%clk 0:02:40.1]} 15. Qd3
{[%clk 0:02:26.5]} 15... g6 {[%clk 0:02:32.4]} 16. Qh3 {[%clk 0:02:25.9]} 16...
e5 {[%clk 0:01:46.1]} 17. dxe5 {[%clk 0:02:19.7]} 17... dxe5 {[%clk 0:01:46.2]}
18. Bg3 {[%clk 0:02:19.1]} 18... h6 {[%clk 0:01:38.7]} 19. Nge4 {[%clk
0:02:09.1]} 19... Nxe4 {[%clk 0:01:36.7]} 20. Nxe4 {[%clk 0:02:10]} 20... Bxe4
{[%clk 0:01:13.3]} 21. Rxd7 {[%clk 0:02:05.3]} 21... Qc5 {[%clk 0:00:36.6]} 22.
Bxe4 {[%clk 0:02:00.4]} 22... Rad8 {[%clk 0:00:36.2]} 23. Red1 {[%clk
0:01:53.3]} 23... Rxd7 {[%clk 0:00:28.9]} 24. Qxd7 {[%clk 0:01:54.2]} 24... Re7
{[%clk 0:00:25.7]} 25. Qd5 {[%clk 0:01:50.5]} 25... Qc7 {[%clk 0:00:20.3]} 26.
Bxg6 {[%clk 0:01:49.5]} 26... Re6 {[%clk 0:00:17.9]} 27. Bc2 {[%clk 0:01:44.7]}
27... Rd6 {[%clk 0:00:18.2]} 28. Qxe5 {[%clk 0:01:41.6]} 28... Rxd1+ {[%clk
0:00:17.2]} 29. Bxd1 {[%clk 0:01:42.5]} 29... Qd7 {[%clk 0:00:17.4]} 30. Qe2
{[%clk 0:01:40.6]} 30... Qd5 {[%clk 0:00:16.3]} 1-0

[Event "*** Titled Tuesday Blitz"]
[Site "Chess.com"]
[Date "2020.04.07"]
[Round "3"]
[White "IljaJoke"]
[Black "EnergeticHay"]
[Result "0-1"]
[WhiteElo "2503"]
[BlackElo "2196"]
[TimeControl "180+1"]
[EndTime "13:27:59 PDT"]
[Termination "EnergeticHay won by resignation"]

1. d4 {[%clk 0:02:46.3]} 1... Nf6 {[%clk 0:02:59.8]} 2. c4 {[%clk 0:02:45.8]}
2... g6 {[%clk 0:03:00.2]} 3. Nc3 {[%clk 0:02:45.2]} 3... Bg7 {[%clk 0:03:00.7]}
4. e4 {[%clk 0:02:45.4]} 4... d6 {[%clk 0:03:00.9]} 5. Be2 {[%clk 0:02:45.7]}
5... O-O {[%clk 0:03:01.3]} 6. Be3 {[%clk 0:02:46.4]} 6... e5 {[%clk 0:03:00.8]}
7. d5 {[%clk 0:02:46.9]} 7... a5 {[%clk 0:02:58.9]} 8. g4 {[%clk 0:02:47.4]}
8... Na6 {[%clk 0:02:57.9]} 9. h4 {[%clk 0:02:48]} 9... Ne8 {[%clk 0:02:56.1]}
10. h5 {[%clk 0:02:42.9]} 10... f5 {[%clk 0:02:53]} 11. hxg6 {[%clk 0:02:42.9]}
11... hxg6 {[%clk 0:02:47.2]} 12. gxf5 {[%clk 0:02:39.8]} 12... gxf5 {[%clk
0:02:48.1]} 13. exf5 {[%clk 0:02:39.9]} 13... Bxf5 {[%clk 0:02:47.6]} 14. Bg4
{[%clk 0:02:37.4]} 14... Qd7 {[%clk 0:02:41.6]} 15. Bxf5 {[%clk 0:02:30.4]}
15... Qxf5 {[%clk 0:02:42.5]} 16. Rh5 {[%clk 0:02:15.9]} 16... Qg6 {[%clk
0:02:41.1]} 17. Rg5 {[%clk 0:02:16.1]} 17... Qh7 {[%clk 0:02:40.9]} 18. Nge2
{[%clk 0:02:12.7]} 18... Nb4 {[%clk 0:02:38.8]} 19. Ng3 {[%clk 0:01:57.9]} 19...
Nc2+ {[%clk 0:02:28.6]} 20. Kd2 {[%clk 0:01:57.5]} 20... Nxa1 {[%clk 0:02:18.5]}
21. Nce4 {[%clk 0:01:44.9]} 21... Nf6 {[%clk 0:02:07.4]} 22. Nxf6+ {[%clk
0:01:01.9]} 22... Rxf6 {[%clk 0:02:08.3]} 23. Qxa1 {[%clk 0:00:57.7]} 23... Raf8
{[%clk 0:02:08.1]} 24. Qg1 {[%clk 0:00:56.8]} 24... Kf7 {[%clk 0:02:00]} 25. c5
{[%clk 0:00:41.4]} 25... Bh6 {[%clk 0:01:54.6]} 26. Qh1 {[%clk 0:00:24.7]} 26...
Rxf2+ {[%clk 0:01:43.4]} 27. Bxf2 {[%clk 0:00:16.5]} 27... Bxg5+ {[%clk
0:01:43.3]} 28. Kc3 {[%clk 0:00:12.1]} 28... Qxh1 {[%clk 0:01:42.7]} 29. Nxh1
{[%clk 0:00:13]} 29... Ke7 {[%clk 0:01:42.6]} 30. cxd6+ {[%clk 0:00:12.8]} 30...
Kxd6 {[%clk 0:01:43.2]} 31. Bb6 {[%clk 0:00:13.6]} 31... cxb6 {[%clk 0:01:43]}
0-1

[Event "*** Titled Tuesday Blitz"]
[Site "Chess.com"]
[Date "2020.04.07"]
[Round "3"]
[White "Gajuchess"]
[Black "Qvalda"]
[Result "1-0"]
[WhiteElo "2687"]
[BlackElo "2421"]
[TimeControl "180+1"]
[EndTime "13:28:00 PDT"]
[Termination "Gajuchess won on time"]

1. Nf3 {[%clk 0:03:00.9]} 1... g6 {[%clk 0:02:49.8]} 2. d4 {[%clk 0:03:01.8]}
2... Bg7 {[%clk 0:02:45.3]} 3. g3 {[%clk 0:03:02.7]} 3... Nf6 {[%clk 0:02:41.8]}
4. Bg2 {[%clk 0:03:03.6]} 4... O-O {[%clk 0:02:42.1]} 5. O-O {[%clk 0:03:04.5]}
5... d6 {[%clk 0:02:42.3]} 6. c4 {[%clk 0:03:04.7]} 6... Nc6 {[%clk 0:02:35.6]}
7. Nc3 {[%clk 0:03:03.7]} 7... a6 {[%clk 0:02:35.6]} 8. Bf4 {[%clk 0:02:58.5]}
8... Rb8 {[%clk 0:02:33.2]} 9. Rc1 {[%clk 0:02:56.5]} 9... Bd7 {[%clk
0:02:23.5]} 10. Qd2 {[%clk 0:02:55.8]} 10... b5 {[%clk 0:02:19]} 11. cxb5 {[%clk
0:02:55.6]} 11... axb5 {[%clk 0:02:18.6]} 12. d5 {[%clk 0:02:52.5]} 12... Na5
{[%clk 0:02:00.1]} 13. b3 {[%clk 0:02:52.9]} 13... Nb7 {[%clk 0:01:59.8]} 14.
Bh6 {[%clk 0:02:52.3]} 14... Nc5 {[%clk 0:01:54]} 15. Bxg7 {[%clk 0:02:51.5]}
15... Kxg7 {[%clk 0:01:54.9]} 16. Qd4 {[%clk 0:02:52.3]} 16... b4 {[%clk
0:01:49.2]} 17. Nb1 {[%clk 0:02:52.4]} 17... Bf5 {[%clk 0:01:32.3]} 18. Nbd2
{[%clk 0:02:51.6]} 18... Qd7 {[%clk 0:01:26.2]} 19. Rfe1 {[%clk 0:02:50.6]}
19... Bh3 {[%clk 0:01:24.1]} 20. Bh1 {[%clk 0:02:50.1]} 20... Kg8 {[%clk
0:01:19.6]} 21. Ne5 {[%clk 0:02:49.3]} 21... dxe5 {[%clk 0:01:11.1]} 22. Qxc5
{[%clk 0:02:49.1]} 22... Rb5 {[%clk 0:00:58.8]} 23. Qxc7 {[%clk 0:02:40.5]}
23... Qxc7 {[%clk 0:00:46.3]} 24. Rxc7 {[%clk 0:02:41.4]} 24... Nxd5 {[%clk
0:00:46.5]} 25. Bxd5 {[%clk 0:02:34.4]} 25... Rxd5 {[%clk 0:00:47.4]} 26. Nc4
{[%clk 0:02:26.9]} 26... Ra8 {[%clk 0:00:39.3]} 27. Nb6 {[%clk 0:02:26.2]} 27...
Raa5 {[%clk 0:00:17.3]} 28. Nxd5 {[%clk 0:02:26]} 28... Rxd5 {[%clk 0:00:16.7]}
29. Rc4 {[%clk 0:02:26.2]} 29... Rd2 {[%clk 0:00:14.9]} 30. Rxb4 {[%clk
0:02:25.7]} 30... Rxa2 {[%clk 0:00:15.1]} 31. g4 {[%clk 0:02:15.6]} 31... h5
{[%clk 0:00:02]} 32. f3 {[%clk 0:02:14.9]} 32... hxg4 {[%clk 0:00:01.9]} 33.
fxg4 {[%clk 0:02:15.8]} 33... f5 {[%clk 0:00:02.1]} 34. gxf5 {[%clk 0:02:16.4]}
34... Bxf5 {[%clk 0:00:01.1]} 35. Kf2 {[%clk 0:02:17.3]} 35... e4 {[%clk
0:00:01.1]} 36. Ke3 {[%clk 0:02:17.1]} 36... Kf7 {[%clk 0:00:01.3]} 37. Rb6
{[%clk 0:02:15.7]} 37... Rb2 {[%clk 0:00:01.1]} 38. Rf1 {[%clk 0:02:14.8]} 1-0

[Event "*** Titled Tuesday Blitz"]
[Site "Chess.com"]
[Date "2020.04.07"]
[Round "3"]
[White "jeaston1"]
[Black "mersad_98"]
[Result "0-1"]
[WhiteElo "2439"]
[BlackElo "2709"]
[TimeControl "180+1"]
[EndTime "13:28:05 PDT"]
[Termination "mersad_98 won by resignation"]

1. d4 {[%clk 0:03:00.9]} 1... d5 {[%clk 0:02:58.6]} 2. c4 {[%clk 0:03:00.9]}
2... dxc4 {[%clk 0:02:58.4]} 3. e4 {[%clk 0:02:51.2]} 3... Nf6 {[%clk
0:02:57.9]} 4. Nc3 {[%clk 0:02:45]} 4... e5 {[%clk 0:02:56.4]} 5. Nf3 {[%clk
0:02:39.8]} 5... exd4 {[%clk 0:02:55.9]} 6. Qxd4 {[%clk 0:02:39.1]} 6... Qxd4
{[%clk 0:02:56.1]} 7. Nxd4 {[%clk 0:02:39.5]} 7... Bc5 {[%clk 0:02:55.2]} 8. Be3
{[%clk 0:02:36.7]} 8... Ng4 {[%clk 0:02:40.3]} 9. Bxc4 {[%clk 0:02:13.2]} 9...
Nxe3 {[%clk 0:02:11.6]} 10. fxe3 {[%clk 0:02:14.1]} 10... c6 {[%clk 0:01:42.5]}
11. O-O {[%clk 0:01:58.1]} 11... Rf8 {[%clk 0:01:42.4]} 12. Rae1 {[%clk
0:01:54.3]} 12... Nd7 {[%clk 0:01:41.6]} 13. Nf5 {[%clk 0:01:52.1]} 13... g6
{[%clk 0:01:42]} 14. Nd4 {[%clk 0:01:24.9]} 14... Ne5 {[%clk 0:01:41]} 15. Be2
{[%clk 0:01:22.5]} 15... a5 {[%clk 0:01:34.4]} 16. Rd1 {[%clk 0:01:14]} 16... a4
{[%clk 0:01:27.6]} 17. a3 {[%clk 0:01:06.9]} 17... Bg4 {[%clk 0:01:19.5]} 18.
Bxg4 {[%clk 0:01:04]} 18... Nxg4 {[%clk 0:01:20.4]} 19. Rfe1 {[%clk 0:01:02.5]}
19... Ke7 {[%clk 0:01:14.1]} 20. h3 {[%clk 0:00:57]} 20... Ne5 {[%clk
0:01:13.9]} 0-1

[Event "*** Titled Tuesday Blitz"]
[Site "Chess.com"]
[Date "2020.04.07"]
[Round "3"]
[White "2L8IWUN"]
[Black "FelixBlohberger"]
[Result "1/2-1/2"]
[WhiteElo "2363"]
[BlackElo "2597"]
[TimeControl "180+1"]
[EndTime "13:28:05 PDT"]
[Termination "Game drawn by repetition"]

1. d4 {[%clk 0:03:00.9]} 1... e6 {[%clk 0:02:53.4]} 2. Nf3 {[%clk 0:03:01]} 2...
Nf6 {[%clk 0:02:52.1]} 3. Bf4 {[%clk 0:02:54.8]} 3... d5 {[%clk 0:02:48.1]} 4.
e3 {[%clk 0:02:54.7]} 4... c5 {[%clk 0:02:47.1]} 5. Nbd2 {[%clk 0:02:53.5]} 5...
Bd6 {[%clk 0:02:46.6]} 6. Bg3 {[%clk 0:02:53]} 6... Nc6 {[%clk 0:02:45.6]} 7. c3
{[%clk 0:02:53]} 7... Qc7 {[%clk 0:02:42.3]} 8. dxc5 {[%clk 0:02:51]} 8... Bxg3
{[%clk 0:02:39.6]} 9. hxg3 {[%clk 0:02:51.9]} 9... a5 {[%clk 0:02:36.2]} 10. a3
{[%clk 0:02:47.5]} 10... a4 {[%clk 0:02:35.6]} 11. Nd4 {[%clk 0:02:39.5]} 11...
Qa5 {[%clk 0:02:30]} 12. b4 {[%clk 0:02:22.2]} 12... axb3 {[%clk 0:02:28.5]} 13.
N2xb3 {[%clk 0:02:22.5]} 13... Qxc3+ {[%clk 0:02:28]} 14. Qd2 {[%clk 0:02:15.8]}
14... Qxd2+ {[%clk 0:02:25.2]} 15. Kxd2 {[%clk 0:02:16.7]} 15... Ne4+ {[%clk
0:02:24.2]} 16. Ke1 {[%clk 0:02:15.1]} 16... e5 {[%clk 0:02:17]} 17. Nb5 {[%clk
0:02:07.5]} 17... O-O {[%clk 0:01:42.5]} 18. Nc7 {[%clk 0:01:56.6]} 18... Ra7
{[%clk 0:01:19.1]} 19. Nxd5 {[%clk 0:01:40.7]} 19... Be6 {[%clk 0:01:18.2]} 20.
Bc4 {[%clk 0:01:36.3]} 20... Ra4 {[%clk 0:00:57.5]} 21. Bb5 {[%clk 0:01:20.4]}
21... Ra7 {[%clk 0:00:47.4]} 22. Bc4 {[%clk 0:01:10.4]} 22... Ra4 {[%clk
0:00:46.5]} 23. Bb5 {[%clk 0:01:10.3]} 23... Ra7 {[%clk 0:00:15.2]} 24. Bc4
{[%clk 0:01:10.1]} 1/2-1/2